[Event "Late-Titled-Tuesday-Blitz-December-26-2023"]
[Site "Chess.com"]
[Date "2023.12.26"]
[Round "3"]
[White "Crasyhealer"]
[Black "AlexPapasimakopoulos"]
[Result "0-1"]
[WhiteElo "2455"]
[BlackElo "2643"]
[TimeControl "180+1"]
[EndTime "14:22:31 PST"]
[Termination "AlexPapasimakopoulos won by resignation"]

1. c4 {[%clk 0:02:50.7]} 1... e6 {[%clk 0:03:00.1]} 2. g3 {[%clk 0:02:49.6]}
2... d5 {[%clk 0:03:00.5]} 3. Bg2 {[%clk 0:02:49.7]} 3... Nf6 {[%clk 0:02:59.7]}
4. d4 {[%clk 0:02:49.7]} 4... Be7 {[%clk 0:02:59.3]} 5. Nc3 {[%clk 0:02:48]}
5... O-O {[%clk 0:02:59.6]} 6. Nf3 {[%clk 0:02:48.4]} 6... c6 {[%clk 0:02:59.6]}
7. O-O {[%clk 0:02:46.7]} 7... Nbd7 {[%clk 0:02:59.8]} 8. Qc2 {[%clk 0:02:36.3]}
8... b6 {[%clk 0:02:59.7]} 9. e4 {[%clk 0:02:33.6]} 9... dxe4 {[%clk 0:02:59.7]}
10. Qxe4 {[%clk 0:02:34.5]} 10... Nxe4 {[%clk 0:02:59.2]} 0-1

[Event "Late-Titled-Tuesday-Blitz-December-26-2023"]
[Site "Chess.com"]
[Date "2023.12.26"]
[Round "3"]
[White "FrenchHarvey"]
[Black "ChessLebaneseSalah"]
[Result "1-0"]
[WhiteElo "2626"]
[BlackElo "2443"]
[TimeControl "180+1"]
[EndTime "14:24:44 PST"]
[Termination "FrenchHarvey won by resignation"]

1. e4 {[%clk 0:02:57.1]} 1... c5 {[%clk 0:02:59.9]} 2. Nc3 {[%clk 0:02:56.6]}
2... Nc6 {[%clk 0:02:59.9]} 3. Bb5 {[%clk 0:02:56.7]} 3... Nd4 {[%clk
0:02:59.4]} 4. Nf3 {[%clk 0:02:57.4]} 4... Nxb5 {[%clk 0:02:52.3]} 5. Nxb5
{[%clk 0:02:58.3]} 5... a6 {[%clk 0:02:39.2]} 6. Nc3 {[%clk 0:02:56.8]} 6... e6
{[%clk 0:02:39.3]} 7. d4 {[%clk 0:02:56.9]} 7... cxd4 {[%clk 0:02:38.1]} 8. Qxd4
{[%clk 0:02:57.8]} 8... Qc7 {[%clk 0:02:37.8]} 9. O-O {[%clk 0:02:54.6]} 9... d6
{[%clk 0:02:33.2]} 10. Bg5 {[%clk 0:02:50]} 10... h6 {[%clk 0:02:16.3]} 11. Bh4
{[%clk 0:02:48.8]} 11... Ne7 {[%clk 0:02:14.6]} 12. Bxe7 {[%clk 0:02:41.2]}
12... Qxe7 {[%clk 0:02:11]} 13. Rad1 {[%clk 0:02:40.8]} 13... Bd7 {[%clk
0:02:10.7]} 14. Rfe1 {[%clk 0:02:37.9]} 14... Bc6 {[%clk 0:02:10.3]} 15. Nd5
{[%clk 0:02:37.9]} 15... Bxd5 {[%clk 0:01:32.8]} 16. exd5 {[%clk 0:02:36.4]}
16... e5 {[%clk 0:01:33.1]} 17. Nxe5 {[%clk 0:02:36.7]} 17... dxe5 {[%clk
0:01:34]} 18. Rxe5 {[%clk 0:02:36.3]} 18... O-O-O {[%clk 0:01:26.5]} 19. Rxe7
{[%clk 0:02:34.8]} 19... Bxe7 {[%clk 0:01:27.4]} 20. Qxg7 {[%clk 0:02:33]} 20...
Bd6 {[%clk 0:01:25.9]} 21. Qxf7 {[%clk 0:02:32.1]} 21... h5 {[%clk 0:01:17]} 22.
c4 {[%clk 0:02:31.2]} 22... h4 {[%clk 0:01:16.6]} 23. c5 {[%clk 0:02:29.7]}
23... Bb8 {[%clk 0:01:00.8]} 24. Qe6+ {[%clk 0:02:23.7]} 1-0

[Event "Late-Titled-Tuesday-Blitz-December-26-2023"]
[Site "Chess.com"]
[Date "2023.12.26"]
[Round "3"]
[White "maracayo"]
[Black "AungTZ"]
[Result "1-0"]
[WhiteElo "2385"]
[BlackElo "2089"]
[TimeControl "180+1"]
[EndTime "14:24:45 PST"]
[Termination "maracayo won by resignation"]

1. e4 {[%clk 0:03:00.9]} 1... c5 {[%clk 0:02:59.5]} 2. Nc3 {[%clk 0:02:59.1]}
2... a6 {[%clk 0:02:58.3]} 3. g3 {[%clk 0:02:59.2]} 3... b5 {[%clk 0:02:57.6]}
4. Bg2 {[%clk 0:02:59.6]} 4... Bb7 {[%clk 0:02:57.2]} 5. Nge2 {[%clk 0:02:59]}
5... Nf6 {[%clk 0:02:56.3]} 6. a4 {[%clk 0:02:57.1]} 6... b4 {[%clk 0:02:56.1]}
7. Nd5 {[%clk 0:02:56.9]} 7... Bxd5 {[%clk 0:02:49]} 8. exd5 {[%clk 0:02:55.2]}
8... d6 {[%clk 0:02:49.9]} 9. d4 {[%clk 0:02:53.8]} 9... Nbd7 {[%clk 0:02:49.2]}
10. dxc5 {[%clk 0:02:51.3]} 10... Nxc5 {[%clk 0:02:48.8]} 11. Nd4 {[%clk
0:02:51.2]} 11... g6 {[%clk 0:02:45.7]} 12. Nc6 {[%clk 0:02:50.7]} 12... Qb6
{[%clk 0:02:44.2]} 13. O-O {[%clk 0:02:48.5]} 13... Bg7 {[%clk 0:02:44.1]} 14.
Re1 {[%clk 0:02:47.5]} 14... O-O {[%clk 0:02:36.4]} 15. a5 {[%clk 0:02:40.2]}
15... Qb5 {[%clk 0:02:25.5]} 16. Bf1 {[%clk 0:02:25]} 16... Qb7 {[%clk
0:02:22.9]} 17. Rxe7 {[%clk 0:02:24.4]} 17... Qc8 {[%clk 0:02:22.8]} 18. Nxb4
{[%clk 0:02:12.7]} 18... Re8 {[%clk 0:01:58.7]} 19. Nc6 {[%clk 0:02:11]} 19...
Qf5 {[%clk 0:01:39.8]} 20. Bg2 {[%clk 0:02:01.9]} 20... Qe4 {[%clk 0:01:24.4]}
1-0

[Event "Late-Titled-Tuesday-Blitz-December-26-2023"]
[Site "Chess.com"]
[Date "2023.12.26"]
[Round "3"]
[White "albi1999"]
[Black "Vladimir_Zakhartsov"]
[Result "0-1"]
[WhiteElo "2657"]
[BlackElo "2880"]
[TimeControl "180+1"]
[EndTime "14:24:53 PST"]
[Termination "Vladimir_Zakhartsov won by resignation"]

1. d4 {[%clk 0:02:51.4]} 1... Nf6 {[%clk 0:02:59.7]} 2. c4 {[%clk 0:02:50.4]}
2... g6 {[%clk 0:02:59.9]} 3. Nc3 {[%clk 0:02:47.9]} 3... d5 {[%clk 0:03:00.3]}
4. Bg5 {[%clk 0:02:43.7]} 4... Ne4 {[%clk 0:02:58.3]} 5. Bh4 {[%clk 0:02:41.2]}
5... Nxc3 {[%clk 0:02:57.1]} 6. bxc3 {[%clk 0:02:42.1]} 6... Bg7 {[%clk
0:02:57.6]} 7. e3 {[%clk 0:02:42.3]} 7... c5 {[%clk 0:02:57.8]} 8. Nf3 {[%clk
0:02:41]} 8... Nc6 {[%clk 0:02:56.8]} 9. Rc1 {[%clk 0:02:37.5]} 9... O-O {[%clk
0:02:54.2]} 10. Be2 {[%clk 0:02:34]} 10... Be6 {[%clk 0:02:47]} 11. cxd5 {[%clk
0:02:33.2]} 11... Bxd5 {[%clk 0:02:47.2]} 12. Qa4 {[%clk 0:02:17.6]} 12... Re8
{[%clk 0:02:22.2]} 13. O-O {[%clk 0:02:15.5]} 13... a6 {[%clk 0:02:22.6]} 14.
Qa3 {[%clk 0:02:13.5]} 14... c4 {[%clk 0:02:15.6]} 15. Nd2 {[%clk 0:02:07.3]}
15... b5 {[%clk 0:02:10.1]} 16. e4 {[%clk 0:01:39.2]} 16... b4 {[%clk
0:02:03.6]} 17. cxb4 {[%clk 0:01:38.9]} 17... Nxd4 {[%clk 0:02:03.3]} 18. Bxc4
{[%clk 0:01:37.7]} 18... Bxc4 {[%clk 0:02:02.9]} 19. Nxc4 {[%clk 0:01:30.8]}
19... Ne2+ {[%clk 0:02:02.7]} 20. Kh1 {[%clk 0:01:31.7]} 20... Nxc1 {[%clk
0:02:02.6]} 21. Rxc1 {[%clk 0:01:32.6]} 21... Qd4 {[%clk 0:01:54.3]} 22. f3
{[%clk 0:01:31.9]} 22... Rec8 {[%clk 0:01:51.3]} 23. Qb3 {[%clk 0:01:31.2]}
23... Rc6 {[%clk 0:01:46.4]} 0-1

[Event "Late-Titled-Tuesday-Blitz-December-26-2023"]
[Site "Chess.com"]
[Date "2023.12.26"]
[Round "3"]
[White "frequentblunders"]
[Black "czasnaszachy"]
[Result "0-1"]
[WhiteElo "2124"]
[BlackElo "2400"]
[TimeControl "180+1"]
[EndTime "14:24:58 PST"]
[Termination "czasnaszachy won by resignation"]

1. g3 {[%clk 0:03:00]} 1... d5 {[%clk 0:02:58.1]} 2. Bg2 {[%clk 0:03:00.9]} 2...
e5 {[%clk 0:02:58]} 3. d3 {[%clk 0:02:59]} 3... Nf6 {[%clk 0:02:56.6]} 4. Nd2
{[%clk 0:02:59]} 4... Nc6 {[%clk 0:02:55.8]} 5. e4 {[%clk 0:02:58.8]} 5... g6
{[%clk 0:02:55.1]} 6. Ne2 {[%clk 0:02:58]} 6... Bg7 {[%clk 0:02:55.3]} 7. O-O
{[%clk 0:02:57.1]} 7... O-O {[%clk 0:02:55.3]} 8. h3 {[%clk 0:02:55.9]} 8... Re8
{[%clk 0:02:54.7]} 9. c3 {[%clk 0:02:55.3]} 9... h6 {[%clk 0:02:54.4]} 10. a4
{[%clk 0:02:54.6]} 10... a5 {[%clk 0:02:53.5]} 11. Qc2 {[%clk 0:02:53.8]} 11...
Be6 {[%clk 0:02:53.3]} 12. Kh2 {[%clk 0:02:47.6]} 12... Qd7 {[%clk 0:02:52.6]}
13. exd5 {[%clk 0:02:41.3]} 13... Bxd5 {[%clk 0:02:49.7]} 14. Ne4 {[%clk
0:02:38.9]} 14... Nxe4 {[%clk 0:02:43.2]} 15. dxe4 {[%clk 0:02:39.6]} 15... Bc4
{[%clk 0:02:43.3]} 16. Be3 {[%clk 0:02:33.3]} 16... Rad8 {[%clk 0:02:37.6]} 17.
Rfd1 {[%clk 0:02:26.6]} 17... Qe6 {[%clk 0:02:37.4]} 18. Nc1 {[%clk 0:02:10.8]}
18... Rxd1 {[%clk 0:02:30.8]} 19. Qxd1 {[%clk 0:02:10.9]} 19... Rd8 {[%clk
0:02:30.9]} 20. Qc2 {[%clk 0:02:10.1]} 20... Qd7 {[%clk 0:02:24]} 21. b3 {[%clk
0:02:09.8]} 21... Be6 {[%clk 0:02:15.8]} 22. Ne2 {[%clk 0:02:03.5]} 22... Qd3
{[%clk 0:02:15.1]} 23. Qxd3 {[%clk 0:01:55.1]} 23... Rxd3 {[%clk 0:02:15]} 24.
Rb1 {[%clk 0:01:55.1]} 24... Bf8 {[%clk 0:02:08.7]} 25. c4 {[%clk 0:01:49.8]}
25... h5 {[%clk 0:01:44.1]} 26. f4 {[%clk 0:01:40.1]} 26... Rxe3 {[%clk
0:01:42.8]} 0-1

[Event "Late-Titled-Tuesday-Blitz-December-26-2023"]
[Site "Chess.com"]
[Date "2023.12.26"]
[Round "3"]
[White "carokannlover213"]
[Black "GABUZYAN_CHESSMOOD"]
[Result "1/2-1/2"]
[WhiteElo "2682"]
[BlackElo "2896"]
[TimeControl "180+1"]
[EndTime "14:25:14 PST"]
[Termination "Game drawn by agreement"]

1. e4 {[%clk 0:03:00.9]} 1... c5 {[%clk 0:02:59.6]} 2. Nf3 {[%clk 0:03:01.3]}
2... e6 {[%clk 0:02:59.2]} 3. d4 {[%clk 0:03:01.3]} 3... cxd4 {[%clk 0:02:58.3]}
4. Nxd4 {[%clk 0:03:02.2]} 4... a6 {[%clk 0:02:57.8]} 5. a3 {[%clk 0:03:00.9]}
5... Nc6 {[%clk 0:02:54.5]} 6. Nc3 {[%clk 0:03:00.3]} 6... Nf6 {[%clk
0:02:51.9]} 7. Be3 {[%clk 0:02:52.6]} 7... d5 {[%clk 0:02:46.7]} 8. exd5 {[%clk
0:02:48.5]} 8... Nxd5 {[%clk 0:02:47.6]} 9. Nxd5 {[%clk 0:02:46]} 9... Qxd5
{[%clk 0:02:48.5]} 10. Be2 {[%clk 0:02:20.5]} 10... Bd7 {[%clk 0:02:42.9]} 11.
Bf3 {[%clk 0:02:16.9]} 11... Qe5 {[%clk 0:02:41.4]} 12. Nxc6 {[%clk 0:02:14]}
12... Bxc6 {[%clk 0:02:39.1]} 13. Bxc6+ {[%clk 0:02:11.6]} 13... bxc6 {[%clk
0:02:40]} 14. O-O {[%clk 0:02:08.4]} 14... Bd6 {[%clk 0:02:35.7]} 15. g3 {[%clk
0:02:02.5]} 15... Bc5 {[%clk 0:02:15.1]} 16. Bf4 {[%clk 0:01:22.2]} 16... Qd5
{[%clk 0:02:13.7]} 17. c4 {[%clk 0:01:21.2]} 17... Qxd1 {[%clk 0:02:05.2]} 18.
Raxd1 {[%clk 0:01:19.1]} 18... a5 {[%clk 0:02:06.1]} 19. Bd6 {[%clk 0:01:14.3]}
19... Bxd6 {[%clk 0:01:49.9]} 20. Rxd6 {[%clk 0:01:15.2]} 20... Rc8 {[%clk
0:01:50.3]} 21. Re1 {[%clk 0:01:05.9]} 21... Ke7 {[%clk 0:01:48.8]} 1/2-1/2

[Event "Late-Titled-Tuesday-Blitz-December-26-2023"]
[Site "Chess.com"]
[Date "2023.12.26"]
[Round "3"]
[White "SCIM"]
[Black "hsd2016"]
[Result "0-1"]
[WhiteElo "2503"]
[BlackElo "2270"]
[TimeControl "180+1"]
[EndTime "14:26:07 PST"]
[Termination "hsd2016 won by resignation"]

1. d4 {[%clk 0:03:00.9]} 1... d5 {[%clk 0:03:00.3]} 2. c4 {[%clk 0:03:00.2]}
2... c6 {[%clk 0:03:00.9]} 3. Nf3 {[%clk 0:03:00.4]} 3... Nf6 {[%clk 0:03:01.4]}
4. g3 {[%clk 0:03:01.3]} 4... e6 {[%clk 0:03:00.1]} 5. Bg2 {[%clk 0:03:01.4]}
5... Nbd7 {[%clk 0:03:00.5]} 6. O-O {[%clk 0:03:02.3]} 6... a6 {[%clk 0:03:00]}
7. Nbd2 {[%clk 0:03:02.6]} 7... b5 {[%clk 0:03:00.3]} 8. b3 {[%clk 0:03:00.8]}
8... Bd6 {[%clk 0:02:42.1]} 9. Bb2 {[%clk 0:02:59.5]} 9... O-O {[%clk
0:02:41.6]} 10. Qc2 {[%clk 0:02:58.9]} 10... Bb7 {[%clk 0:02:41.7]} 11. e4
{[%clk 0:02:54.7]} 11... dxe4 {[%clk 0:02:41.3]} 12. Nxe4 {[%clk 0:02:55.6]}
12... Nxe4 {[%clk 0:02:42]} 13. Qxe4 {[%clk 0:02:55.5]} 13... Nf6 {[%clk
0:02:42.7]} 14. Qh4 {[%clk 0:02:52.3]} 14... Be7 {[%clk 0:02:32.8]} 15. Rad1
{[%clk 0:02:44.6]} 15... Qa5 {[%clk 0:02:30]} 16. a3 {[%clk 0:02:27.2]} 16...
bxc4 {[%clk 0:02:22.9]} 17. bxc4 {[%clk 0:02:26.2]} 17... Qa4 {[%clk 0:02:23.6]}
18. Ne5 {[%clk 0:02:20.1]} 18... Rfe8 {[%clk 0:02:12.9]} 19. Rfe1 {[%clk
0:02:13.9]} 19... Rab8 {[%clk 0:02:06.8]} 20. Bc1 {[%clk 0:02:10.5]} 20... Nd7
{[%clk 0:01:48.1]} 21. Qg4 {[%clk 0:01:54.2]} 21... Nxe5 {[%clk 0:01:45.1]} 22.
dxe5 {[%clk 0:01:54]} 22... c5 {[%clk 0:01:37.1]} 23. Bh6 {[%clk 0:01:38.2]}
23... Bf8 {[%clk 0:01:35.8]} 24. Bxb7 {[%clk 0:01:29.5]} 24... Rxb7 {[%clk
0:01:34.5]} 25. Rd3 {[%clk 0:01:28.1]} 25... Qc2 {[%clk 0:01:29.3]} 26. Red1
{[%clk 0:01:20.8]} 26... Rb1 {[%clk 0:01:18.2]} 27. h4 {[%clk 0:01:10.9]} 27...
Qxd3 {[%clk 0:01:14.8]} 28. Rxb1 {[%clk 0:01:02.7]} 28... Qxb1+ {[%clk 0:01:14]}
29. Kh2 {[%clk 0:01:03.6]} 29... Qg6 {[%clk 0:01:14.6]} 0-1

[Event "Late-Titled-Tuesday-Blitz-December-26-2023"]
[Site "Chess.com"]
[Date "2023.12.26"]
[Round "3"]
[White "Pertinhez76"]
[Black "Dr_crypt"]
[Result "1/2-1/2"]
[WhiteElo "2069"]
[BlackElo "2362"]
[TimeControl "180+1"]
[EndTime "14:26:08 PST"]
[Termination "Game drawn by repetition"]

1. d4 {[%clk 0:02:55.6]} 1... e6 {[%clk 0:02:58.2]} 2. Nf3 {[%clk 0:02:55.2]}
2... b6 {[%clk 0:02:58.4]} 3. e4 {[%clk 0:02:54.9]} 3... d5 {[%clk 0:02:56.9]}
4. e5 {[%clk 0:02:54.1]} 4... c5 {[%clk 0:02:56]} 5. c3 {[%clk 0:02:53.5]} 5...
Qd7 {[%clk 0:02:55.7]} 6. a4 {[%clk 0:02:50.9]} 6... Ba6 {[%clk 0:02:55.8]} 7.
Nbd2 {[%clk 0:02:44.2]} 7... Bxf1 {[%clk 0:02:46.8]} 8. Nxf1 {[%clk 0:02:45.1]}
8... Nc6 {[%clk 0:02:45.4]} 9. Ne3 {[%clk 0:02:39.5]} 9... cxd4 {[%clk
0:02:41.7]} 10. cxd4 {[%clk 0:02:39.1]} 10... Bb4+ {[%clk 0:02:39.6]} 11. Bd2
{[%clk 0:02:39.6]} 11... Nge7 {[%clk 0:02:39.8]} 12. O-O {[%clk 0:02:38.8]}
12... Rc8 {[%clk 0:02:36.6]} 13. Qe2 {[%clk 0:02:30.4]} 13... O-O {[%clk
0:02:23.6]} 14. Rfd1 {[%clk 0:02:20.8]} 14... Rc7 {[%clk 0:02:13.4]} 15. h3
{[%clk 0:02:16.7]} 15... Rfc8 {[%clk 0:02:11.8]} 16. g4 {[%clk 0:02:10.2]} 16...
h6 {[%clk 0:02:09.6]} 17. Kg2 {[%clk 0:02:09.8]} 17... Ng6 {[%clk 0:02:08.6]}
18. Kg3 {[%clk 0:02:09.8]} 18... Be7 {[%clk 0:01:59.3]} 19. Qb5 {[%clk
0:02:05.5]} 19... Bg5 {[%clk 0:01:54.3]} 20. Rdc1 {[%clk 0:02:00.5]} 20... Bf4+
{[%clk 0:01:43.3]} 21. Kg2 {[%clk 0:02:00.5]} 21... Qd8 {[%clk 0:01:31.8]} 22.
Rc3 {[%clk 0:01:45.1]} 22... Na5 {[%clk 0:01:19.9]} 23. Rxc7 {[%clk 0:01:40.6]}
23... Rxc7 {[%clk 0:01:18.8]} 24. Bxa5 {[%clk 0:01:40.2]} 24... bxa5 {[%clk
0:01:18.4]} 25. Qxa5 {[%clk 0:01:37]} 25... Qb8 {[%clk 0:01:16]} 26. Qd2 {[%clk
0:01:32.4]} 26... Qb3 {[%clk 0:01:13.7]} 27. Ra3 {[%clk 0:01:29.7]} 27... Qb6
{[%clk 0:01:08.6]} 28. Rc3 {[%clk 0:01:29.1]} 28... Bg5 {[%clk 0:01:02.7]} 29.
Kg3 {[%clk 0:01:27.5]} 29... Bf4+ {[%clk 0:01:01.3]} 30. Kg2 {[%clk 0:01:27.5]}
30... Bg5 {[%clk 0:00:59.3]} 31. Kg3 {[%clk 0:01:27.6]} 31... Bf4+ {[%clk
0:00:56.9]} 32. Kg2 {[%clk 0:01:27.7]} 1/2-1/2

[Event "Late-Titled-Tuesday-Blitz-December-26-2023"]
[Site "Chess.com"]
[Date "2023.12.26"]
[Round "3"]
[White "Thjop"]
[Black "Vision_64"]
[Result "1-0"]
[WhiteElo "2687"]
[BlackElo "2295"]
[TimeControl "180+1"]
[EndTime "14:26:16 PST"]
[Termination "Thjop won on time"]

1. e4 {[%clk 0:03:00.9]} 1... e6 {[%clk 0:02:58]} 2. d4 {[%clk 0:03:00.7]} 2...
d5 {[%clk 0:02:55.4]} 3. Nd2 {[%clk 0:03:00.9]} 3... Nc6 {[%clk 0:02:49.5]} 4.
Ngf3 {[%clk 0:03:00.7]} 4... Nf6 {[%clk 0:02:24.5]} 5. e5 {[%clk 0:03:00.4]}
5... Nd7 {[%clk 0:02:24.5]} 6. Bd3 {[%clk 0:03:01]} 6... Nb4 {[%clk 0:02:21.5]}
7. Be2 {[%clk 0:03:00.4]} 7... c5 {[%clk 0:02:18.5]} 8. c3 {[%clk 0:03:00.4]}
8... Nc6 {[%clk 0:02:18.2]} 9. O-O {[%clk 0:03:00.4]} 9... Be7 {[%clk
0:02:05.4]} 10. Re1 {[%clk 0:03:00.1]} 10... f6 {[%clk 0:01:48]} 11. exf6 {[%clk
0:02:58.5]} 11... Nxf6 {[%clk 0:01:47.3]} 12. Nf1 {[%clk 0:02:53.9]} 12... O-O
{[%clk 0:01:44.5]} 13. Ng3 {[%clk 0:02:53]} 13... cxd4 {[%clk 0:01:25.6]} 14.
cxd4 {[%clk 0:02:52.8]} 14... Bd6 {[%clk 0:01:25.6]} 15. Be3 {[%clk 0:02:48]}
15... Kh8 {[%clk 0:01:16.2]} 16. a3 {[%clk 0:02:45]} 16... Bxg3 {[%clk
0:00:54.1]} 17. hxg3 {[%clk 0:02:43.2]} 17... Ne4 {[%clk 0:00:51]} 18. Nd2
{[%clk 0:02:38.6]} 18... Nd6 {[%clk 0:00:41.9]} 19. g4 {[%clk 0:02:34.6]} 19...
Bd7 {[%clk 0:00:41.1]} 20. Rc1 {[%clk 0:02:33.9]} 20... e5 {[%clk 0:00:40]} 21.
dxe5 {[%clk 0:02:30.8]} 21... Nxe5 {[%clk 0:00:40]} 22. Bd4 {[%clk 0:02:19]}
22... Nc6 {[%clk 0:00:34.6]} 23. Bc5 {[%clk 0:02:19.3]} 23... Qf6 {[%clk
0:00:24.2]} 24. Nf3 {[%clk 0:02:14.5]} 24... Bxg4 {[%clk 0:00:12.7]} 25. Qxd5
{[%clk 0:02:14.2]} 25... Rfd8 {[%clk 0:00:10.9]} 26. Qg5 {[%clk 0:02:10]} 26...
Ne4 {[%clk 0:00:09.3]} 27. Qxg4 {[%clk 0:02:05.1]} 27... Nxc5 {[%clk 0:00:07.1]}
28. Rxc5 {[%clk 0:02:06]} 1-0

[Event "Late-Titled-Tuesday-Blitz-December-26-2023"]
[Site "Chess.com"]
[Date "2023.12.26"]
[Round "3"]
[White "bipe137"]
[Black "sofaceindisguise"]
[Result "0-1"]
[WhiteElo "2537"]
[BlackElo "2722"]
[TimeControl "180+1"]
[EndTime "14:26:18 PST"]
[Termination "sofaceindisguise won by checkmate"]

1. d4 {[%clk 0:02:59.2]} 1... Nf6 {[%clk 0:02:59.6]} 2. c4 {[%clk 0:02:58.8]}
2... e6 {[%clk 0:03:00.1]} 3. Nc3 {[%clk 0:02:59.2]} 3... Bb4 {[%clk 0:02:59.5]}
4. f3 {[%clk 0:02:59.6]} 4... d5 {[%clk 0:02:54.2]} 5. a3 {[%clk 0:02:59.4]}
5... Be7 {[%clk 0:02:51.6]} 6. e4 {[%clk 0:02:59.4]} 6... dxe4 {[%clk
0:02:51.5]} 7. fxe4 {[%clk 0:03:00.3]} 7... e5 {[%clk 0:02:51.8]} 8. d5 {[%clk
0:03:00.3]} 8... O-O {[%clk 0:02:51.3]} 9. Nf3 {[%clk 0:02:59.9]} 9... Bg4
{[%clk 0:02:50.4]} 10. Be2 {[%clk 0:02:59.8]} 10... a5 {[%clk 0:02:50.3]} 11.
Be3 {[%clk 0:02:59.9]} 11... Nbd7 {[%clk 0:02:50.1]} 12. O-O {[%clk 0:02:59.5]}
12... Bc5 {[%clk 0:02:50.4]} 13. Qd2 {[%clk 0:02:59.3]} 13... a4 {[%clk
0:02:49.6]} 14. Kh1 {[%clk 0:02:59.3]} 14... Bxf3 {[%clk 0:02:48.6]} 15. gxf3
{[%clk 0:02:57.2]} 15... Bxe3 {[%clk 0:02:47.6]} 16. Qxe3 {[%clk 0:02:57.3]}
16... Nh5 {[%clk 0:02:45.3]} 17. Rac1 {[%clk 0:02:52.6]} 17... b6 {[%clk
0:02:45]} 18. Bd1 {[%clk 0:02:50.4]} 18... Nc5 {[%clk 0:02:44.2]} 19. Ne2 {[%clk
0:02:48.5]} 19... Qf6 {[%clk 0:02:41.4]} 20. Rg1 {[%clk 0:02:48.6]} 20... g6
{[%clk 0:02:39]} 21. Bc2 {[%clk 0:02:48.8]} 21... Rac8 {[%clk 0:02:29.8]} 22.
Rg5 {[%clk 0:02:48.7]} 22... c6 {[%clk 0:02:27.5]} 23. Rcg1 {[%clk 0:02:48.6]}
23... cxd5 {[%clk 0:02:27.5]} 24. Rxh5 {[%clk 0:02:48.3]} 24... d4 {[%clk
0:02:22.7]} 25. Qf2 {[%clk 0:02:45.2]} 25... d3 {[%clk 0:02:22]} 26. Ng3 {[%clk
0:02:43.8]} 26... dxc2 {[%clk 0:02:19.4]} 27. Rf5 {[%clk 0:02:42.3]} 27... gxf5
{[%clk 0:02:10.9]} 28. Nh5+ {[%clk 0:02:42.7]} 28... Qg6 {[%clk 0:02:10.7]} 29.
Qxc2 {[%clk 0:02:41.6]} 29... fxe4 {[%clk 0:02:03.6]} 30. Qd2 {[%clk 0:02:38]}
30... Kh8 {[%clk 0:01:56.7]} 31. Rxg6 {[%clk 0:02:38]} 31... fxg6 {[%clk
0:01:57.6]} 32. Qg5 {[%clk 0:02:33.4]} 32... gxh5 {[%clk 0:01:49.2]} 33. Qxe5+
{[%clk 0:02:33.4]} 33... Kg8 {[%clk 0:01:49.6]} 34. Qg5+ {[%clk 0:02:34]} 34...
Kf7 {[%clk 0:01:49.7]} 35. Qxh5+ {[%clk 0:02:34.6]} 35... Ke6 {[%clk 0:01:49.9]}
36. Qd5+ {[%clk 0:02:33.7]} 36... Ke7 {[%clk 0:01:48.5]} 37. fxe4 {[%clk
0:02:33.8]} 37... Rg8 {[%clk 0:01:36.6]} 38. e5 {[%clk 0:02:32.6]} 38... Rcd8
{[%clk 0:01:35.6]} 39. Qf3 {[%clk 0:02:32.8]} 39... Rdf8 {[%clk 0:01:32.9]} 40.
Qh3 {[%clk 0:02:31.8]} 40... Rf7 {[%clk 0:01:26.7]} 41. Qh4+ {[%clk 0:02:27.5]}
41... Kd7 {[%clk 0:01:26.6]} 42. Qd4+ {[%clk 0:02:26.4]} 42... Kc8 {[%clk
0:01:24.2]} 43. h4 {[%clk 0:02:24.7]} 43... Rd7 {[%clk 0:01:21.8]} 44. Qf4
{[%clk 0:02:23.8]} 44... Rd3 {[%clk 0:01:10.9]} 45. Qf5+ {[%clk 0:02:20.1]}
45... Kb8 {[%clk 0:01:11.1]} 46. e6 {[%clk 0:02:20.1]} 46... Rd1+ {[%clk
0:01:05]} 47. Kh2 {[%clk 0:02:20.2]} 47... Rd2+ {[%clk 0:01:05]} 48. Kh1 {[%clk
0:02:20.7]} 48... Nd3 {[%clk 0:01:04]} 49. e7 {[%clk 0:02:14.9]} 49... Nf2+
{[%clk 0:00:55.6]} 50. Kh2 {[%clk 0:02:15]} 50... Ne4+ {[%clk 0:00:53]} 51. Kh3
{[%clk 0:02:15.4]} 51... Rg3# {[%clk 0:00:51.6]} 0-1

[Event "Late-Titled-Tuesday-Blitz-December-26-2023"]
[Site "Chess.com"]
[Date "2023.12.26"]
[Round "3"]
[White "BeardedNM"]
[Black "Zadar321"]
[Result "0-1"]
[WhiteElo "2166"]
[BlackElo "2413"]
[TimeControl "180+1"]
[EndTime "14:26:19 PST"]
[Termination "Zadar321 won by resignation"]

1. e4 {[%clk 0:03:00.9]} 1... c5 {[%clk 0:02:59.8]} 2. Nf3 {[%clk 0:03:00.6]}
2... d6 {[%clk 0:03:00.1]} 3. d4 {[%clk 0:02:59.6]} 3... cxd4 {[%clk 0:03:00.4]}
4. Nxd4 {[%clk 0:03:00.5]} 4... Nf6 {[%clk 0:03:00.8]} 5. Nc3 {[%clk 0:03:01.2]}
5... a6 {[%clk 0:03:01.4]} 6. Be3 {[%clk 0:03:01.7]} 6... e6 {[%clk 0:02:59.1]}
7. f3 {[%clk 0:02:58.6]} 7... b5 {[%clk 0:02:59.4]} 8. a3 {[%clk 0:02:58.4]}
8... Nbd7 {[%clk 0:02:59.6]} 9. g4 {[%clk 0:02:53.4]} 9... Bb7 {[%clk
0:02:59.3]} 10. Qd2 {[%clk 0:02:52.8]} 10... Nb6 {[%clk 0:02:58.9]} 11. g5
{[%clk 0:02:47.5]} 11... Nfd7 {[%clk 0:02:59]} 12. O-O-O {[%clk 0:02:46.7]}
12... Rc8 {[%clk 0:02:59.2]} 13. h4 {[%clk 0:02:42.1]} 13... Be7 {[%clk
0:02:58.7]} 14. h5 {[%clk 0:02:37]} 14... Ne5 {[%clk 0:02:55.7]} 15. Qg2 {[%clk
0:02:24.4]} 15... Nbc4 {[%clk 0:02:55.1]} 16. Bf4 {[%clk 0:02:03.3]} 16... O-O
{[%clk 0:02:48]} 17. g6 {[%clk 0:01:58.1]} 17... Qa5 {[%clk 0:02:45.6]} 18. Nb3
{[%clk 0:01:26.6]} 18... Qb6 {[%clk 0:02:42.2]} 19. h6 {[%clk 0:01:17.5]} 19...
fxg6 {[%clk 0:02:40.4]} 20. Bxe5 {[%clk 0:01:04]} 20... dxe5 {[%clk 0:02:40.1]}
21. hxg7 {[%clk 0:01:04.4]} 21... Rf7 {[%clk 0:02:39]} 22. Bxc4 {[%clk
0:00:59.5]} 22... bxc4 {[%clk 0:02:38.1]} 23. Rxh7 {[%clk 0:00:59.5]} 23... Qe3+
{[%clk 0:02:14.1]} 24. Nd2 {[%clk 0:00:51.6]} 24... Kxh7 {[%clk 0:02:09.2]} 25.
Rh1+ {[%clk 0:00:43.5]} 25... Kxg7 {[%clk 0:02:07.6]} 26. Qh2 {[%clk 0:00:27.1]}
26... Qf4 {[%clk 0:01:55.8]} 27. Qh7+ {[%clk 0:00:22.1]} 27... Kf6 {[%clk
0:01:55.7]} 28. Qh3 {[%clk 0:00:14.8]} 28... Rd8 {[%clk 0:01:55.4]} 0-1